[Event "Czech Open-GM 2022"]
[Site "Pardubice"]
[Date "2022.07.28"]
[Round "7.26"]
[White "Finek, Vaclav"]
[Black "Hrbek, Stepan"]
[Result "1-0"]
[ECO "A21"]
[WhiteElo "2393"]
[BlackElo "2272"]
[Annotator "TA"]
[PlyCount "83"]
[EventDate "2022.07.22"]
[EventType "swiss"]
[EventCountry "CZE"]
[SourceTitle "playchess.com"]
[Source "ChessBase"]
[SourceQuality "1"]
[TimeControl "40/5400+30:1800+30"]

{[%evp 9,83,17,13,14,27,20,27,18,16,0,24,13,27,23,18,12,19,22,24,21,17,14,18,15,17,9,15,6,12,4,25,0,17,14,41,39,72,57,131,115,83,43,89,65,140,114,123,123,211,209,225,219,367,358,656,631,742,735,712,702,804,394,812,422,445,439,512,495,1146,1109,976,735,5297,5281,29989,29986]} 1. c4 e5 {[%emt 0:02:38]} 2. Nc3 {[%emt 0:01:21]} Bb4 {[%emt 0:00:05]} 3. Nd5 {[%emt 0:00:04]} Be7 {[%emt 0:00:07]} 4. d4 {[%emt 0:00:21]} exd4 {[%emt 0:00:09]} 5. Qxd4 {[%emt 0:00:24]} Nf6 {[%emt 0:00:08]} 6. Nxe7 {[%emt 0:01:00] A21: English Opening: 1...e5 2 Nc3.} Qxe7 {[%emt 0:00:08]} 7. Bg5 {[%emt 0:00:04]} Nc6 {[%emt 0:00:07]} 8. Qc3 {[%emt 0:00:44] White has an edge.} d6 {[%emt 0:00:09]} 9. e3 {[%emt 0:18:59] [#]} Be6 $146 {[%emt 0:01:42][%cal Of6e4]} ({Predecessor:} 9... Ne5 10. Nf3 h6 11. Bh4 O-O 12. Nxe5 dxe5 13. Bd3 Qe6 14. O-O-O Nd7 15. f3 Nc5 {0-1 (40) Coleman,T (2333)-Kashlinskaya,A (2494) Chess.com INT 2020}) 10. Ne2 {[%emt 0:04:23]} Ne5 {[%emt 0:18:04]} 11. Nf4 {[%emt 0:04:35][%cal Oc4c5]} h6 {[%emt 0:03:12]} 12. Bxf6 {[%emt 0:06:18]} Qxf6 {[%emt 0:00:44]} 13. Be2 {[%emt 0:00:40][%cal Bf1e2,Be2f3,Bf3d5][%mdl 32]} Nd7 {[%emt 0:08:01]} 14. Qd2 {[%emt 0:06:41]} O-O {[%emt 0:03:05]} 15. O-O {[%emt 0:01:14]} a5 {[%emt 0:00:17]} 16. Rac1 {[%emt 0:02:34]} Nc5 {[%emt 0:01:27]} 17. Bf3 {[%emt 0:00:51]} a4 {[%emt 0:05:22]} 18. Qd4 {[%emt 0:04:13]} Qe5 {[%emt 0:04:22]} 19. Rfd1 {[%emt 0:02:59]} Qg5 {[%emt 0:09:15]} 20. h3 {[%emt 0:06:02][%cal Bh2h3,Bh3h4][%mdl 32]} Rab8 {[%emt 0:02:41]} 21. Bd5 {[%emt 0:06:05]} b5 {[%emt 0:04:39]} 22. h4 {[%emt 0:06:56]} Qe7 {[%emt 0:01:47]} 23. Nh5 {[%emt 0:01:12][%csl Gh5][%cal Rd4g7] [#]} f6 {[%emt 0:01:27]} (23... f5 $1 $14) 24. Nf4 $36 {[%emt 0:00:55][%mdl 2048] White has strong initiative.} Bxd5 {[%emt 0:00:48]} 25. cxd5 {[%emt 0:03:04] Strongly threatening Ng6.} ({But not} 25. Qxd5+ $6 Qf7 $11) 25... Qd7 {[%emt 0:05:08]} (25... Rf7 $14) 26. Nd3 {[%emt 0:02:39] Black is now going downhill.} Na6 {[%emt 0:00:22]} ({Better is} 26... Nxd3 $14 27. Qxd3 Rfe8) 27. Rc6 {[%emt 0:00:40]} Ra8 {[%emt 0:00:19]} 28. Rdc1 {[%emt 0:01:04] White is more active.} Rfb8 {[%emt 0:00:20] [#]} (28... Rfc8 $16 29. g3 Kh8) 29. b4 $1 $18 {[%emt 0:03:16]} axb3 {[%emt 0:04:41]} 30. axb3 {[%emt 0:01:05]} b4 {[%emt 0:00:05]} (30... Rc8 $142 31. Ra1 Nc5 32. Nxc5 Rxa1+ 33. Qxa1 dxc5) 31. Qc4 {[%emt 0:03:32]} Qc8 {[%emt 0:00:17]} (31... Nc5 32. Nxc5 dxc5 33. Rxc5 Kh8 34. Rxc7 Qd6) 32. Ra1 {[%emt 0:03:25]} Nc5 {[%emt 0:00:05]} 33. Rxa8 {[%emt 0:00:04]} Rxa8 {[%emt 0:00:05]} 34. Nxc5 {[%emt 0:00:44] Threatens to win with Ne6.} dxc5 {[%emt 0:01:05]} 35. Rxc5 {[%emt 0:01:00][%mdl 4096] Endgame KQR-KQR} (35. d6+ $142 Kh8 36. dxc7) 35... Qd7 $2 {[%emt 0:02:26]} (35... Qa6 36. Rxc7 Kh8 37. Qxa6 Rxa6) 36. Rxc7 {[%emt 0:03:22]} Ra1+ {[%emt 0:01:51]} 37. Kh2 {[%emt 0:00:05]} Qd6+ {[%emt 0:00:18]} 38. g3 {[%emt 0:00:21] Hoping for Rc8+.} Rd1 {[%emt 0:00:45]} (38... Ra8 $142 39. Rb7 Rd8) 39. Rc8+ {[%emt 0:00:31]} Kf7 {[%emt 0:00:08]} 40. e4 {[%emt 0:01:37][%cal Be3e4,Be4f5][%mdl 32] aiming for Rc6.} f5 {[%emt 0:01:40]} 41. Qe2 {[%emt 0:30:54] White wants to mate with Qh5+.} Qb6 {[%emt 0:31:51]} 42. exf5 {[%emt 0:01:13] Weighted Error Value: White=0.39/Black=0.56} 1-0